bitfinex/quotes_SOLUSD_20260120
["timestamp","ask_amount","ask_price","bid_price","bid_amount"]
[1768935659238,17.22,127.19,127.17,10.0324325]
[1768935659947,113.66003457,127.21,127.17,10.0324325]
[1768935660269,17.22,127.2,127.17,17.89589487]
[1768935660637,103.7,127.21,127.18,10.0324325]
[1768935660842,17.22,127.2,127.19,6.68499454]
[1768935661056,17.22,127.2,127.18,10.0324325]
[1768935661569,103.7,127.21,127.18,10.0324325]
[1768935661775,17.22,127.2,127.19,10.0324325]
[1768935661942,17.22,127.2,127.18,14.54779763]
[1768935662237,103.7,127.21,127.18,14.54779763]
[1768935662446,17.22,127.2,127.18,17.89523559]
[1768935663072,17.22,127.2,127.17,17.89561107]
[1768935663481,17.22,127.2,127.18,14.54773349]
[1768935664201,103.7,127.21,127.19,7.86225332]
[1768935664364,50.57996639,127.24,127.21,3.34743796]
[1768935664561,67.79996639,127.24,127.22,6.68499454]
[1768935665291,17.22,127.24,127.22,6.68499454]
[1768935666677,3.27504003,127.25,127.22,6.68499454]
[1768935667061,3.27504003,127.26,127.23,6.68499454]
[1768935667261,3.27504003,127.26,127.24,6.68499454]
[1768935668873,20.49504003,127.26,127.24,2.66996356]
[1768935669063,3.27504003,127.26,127.24,2.66996356]
[1768935669467,20.49504003,127.26,127.24,2.66996356]
[1768935669957,3.27504003,127.3,127.26,3.34743796]
[1768935670163,17.22,127.29,127.26,6.01740152]
[1768935670363,17.22,127.29,127.27,2.66996356]
[1768935671077,17.22,127.29,127.27,6.67145656]
[1768935671279,3.27504003,127.3,127.27,6.67145656]
[1768935671499,17.22,127.29,127.27,6.67145656]
[1768935672286,3.27504003,127.3,127.27,6.67145656]
[1768935672481,20.49504003,127.3,127.28,6.67145656]
[1768935672674,20.49504003,127.3,127.27,6.67145656]
[1768935672983,3.27504003,127.3,127.27,6.67145656]
[1768935673295,0.2,127.31,127.29,6.67145656]
[1768935673469,0.2,127.31,127.3,6.67145656]
[1768935674983,0.2,127.31,127.29,6.67145656]
[1768935676474,0.2,127.31,127.29,14.5274513]
[1768935676674,0.2,127.31,127.3,6.67145656]
[1768935677488,0.2,127.32,127.3,17.42830685]
[1768935677788,0.2,127.32,127.31,6.67145656]
[1768935678677,3.17440877,127.32,127.29,7.85588928]
[1768935678874,3.17440877,127.32,127.29,6.67145656]
[1768935679076,3.17440877,127.32,127.29,14.52742004]
[1768935679703,3.17440877,127.32,127.29,6.67145656]
[1768935679985,2.97440877,127.31,127.28,14.52813302]
[1768935680373,2.97440877,127.31,127.29,6.67145656]
[1768935680888,2.97440877,127.31,127.29,14.52751938]
[1768935681311,1e-08,127.32,127.31,2.90139075]
[1768935681478,1e-08,127.32,127.31,6.67145656]
[1768935681823,1e-08,127.32,127.3,14.52680197]
[1768935682477,1e-08,127.32,127.31,6.67145656]
[1768935682872,1e-08,127.32,127.3,17.42819272]
[1768935683802,1e-08,127.32,127.31,7.85484251]
[1768935684102,1e-08,127.32,127.3,17.42811783]
[1768935684904,2.97440878,127.32,127.29,6.67145656]
[1768935685070,2.97440878,127.32,127.28,14.52757463]
[1768935685400,2.97440878,127.32,127.29,7.85606922]
[1768935685611,2.97440878,127.32,127.28,17.4292897]
[1768935685799,2.97440877,127.31,127.28,14.52789895]
[1768935686126,2.97440877,127.31,127.27,17.42995591]
[1768935686287,2.97440877,127.31,127.27,7.8571086]
[1768935686481,2.97440877,127.29,127.25,6.67145656]
[1768935686682,2.97440877,127.28,127.26,7.85790831]
[1768935687393,2.91440872,127.28,127.26,7.85790831]
[1768935687588,6.67145656,127.28,127.23,26.32007311]
[1768935687795,6.67145656,127.27,127.22,9.57284731]
[1768935688012,6.67145656,127.27,127.23,7.85947998]
[1768935689083,6.67145656,127.27,127.23,27.50893372]
[1768935689283,0.14216158,127.32,127.23,27.50893372]
[1768935689284,17.22,127.29,127.25,9.57284731]
[1768935689506,17.22,127.29,127.26,6.67145656]
[1768935690296,9.64586533,127.3,127.26,6.67145656]
[1768935690498,20.19440877,127.3,127.26,6.67145656]
[1768935690684,20.19440877,127.3,127.26,14.52937776]
[1768935691085,2.97440877,127.29,127.26,14.52937776]
[1768935692095,2.97440877,127.31,127.28,7.8566939]
[1768935692295,2.97440878,127.32,127.28,14.52815046]
[1768935692601,2.97440877,127.31,127.28,7.8566939]
[1768935693202,2.97440877,127.3,127.27,14.52856954]
[1768935693504,2.97440877,127.3,127.26,14.52924351]
[1768935694211,9.64586533,127.3,127.26,14.52924351]
[1768935694588,2.97440877,127.29,127.26,7.85778695]
[1768935695893,9.64727534,127.29,127.26,7.85778695]
[1768935696096,2.97440877,127.26,127.24,7.85892838]
[1768935696296,2.97440877,127.26,127.23,27.50828443]
[1768935700704,2.97440877,127.26,127.21,0.14216157]
[1768935700909,2.97440877,127.24,127.22,7.86024115]
[1768935702313,9.64727534,127.26,127.22,7.86024115]
[1768935702498,2.97440877,127.25,127.22,7.86024115]
[1768935703612,2.97440877,127.25,127.19,0.14216157]
[1768935703613,9.64727534,127.23,127.19,2.90139075]
[1768935703913,2.97440877,127.22,127.19,7.86199434]
[1768935705320,6.67286657,127.24,127.2,3.05360915]
[1768935705527,2.81444464,127.24,127.21,3.05360915]
[1768935705728,2.81444464,127.24,127.2,9.72647572]
[1768935706411,2.81444464,127.24,127.21,7.86101721]
[1768935706808,7.85705253,127.28,127.21,7.86101721]
[1768935706809,9.48731121,127.26,127.22,9.72647572]
[1768935707028,20.03444464,127.26,127.22,9.72647572]
[1768935707802,26.70731121,127.26,127.22,9.72647572]
[1768935708004,2.81444464,127.25,127.22,6.67286657]
[1768935709344,2.81444464,127.25,127.21,37.24003596]
[1768935709511,1.92065517,127.25,127.21,37.24003596]
[1768935709709,23.89286657,127.26,127.22,3.05360915]
[1768935710006,23.89286657,127.26,127.21,37.24003596]
[1768935710521,58.4367443,127.28,127.21,37.24003596]
[1768935710727,6.67286657,127.25,127.21,6.67286657]
[1768935710921,6.67286657,127.24,127.2,7.86131615]
[1768935711113,6.67286657,127.22,127.17,29.38452878]
[1768935711306,6.67286657,127.21,127.17,22.71166221]
[1768935711505,9.48731121,127.21,127.18,7.86269523]
[1768935712224,2.81444464,127.21,127.18,7.86269523]
[1768935712824,2.75444464,127.21,127.18,7.86269523]
[1768935713428,2.75444464,127.21,127.17,3.05360915]
[1768935713631,6.67286657,127.19,127.15,22.8564614]
[1768935713813,6.67286657,127.2,127.15,29.52932797]
[1768935714627,6.67286657,127.2,127.17,7.86340682]
[1768935714942,9.48731121,127.2,127.17,7.86340682]
[1768935715235,9.48731121,127.2,127.16,10.91741138]
[1768935715424,9.48731121,127.19,127.15,10.91800765]
[1768935715941,6.67286657,127.18,127.15,10.91800765]
[1768935716248,6.67286657,127.18,127.14,0.1]
[1768935716249,9.48731121,127.16,127.14,0.1]
[1768935716411,9.42731122,127.16,127.14,0.1]
[1768935716810,9.42731122,127.16,127.11,34.34877232]
[1768935716811,17.22,127.18,127.11,10.92024442]
[1768935717125,6.67286657,127.14,127.09,18.64181317]
[1768935717325,6.67286657,127.13,127.09,10.92170444]
[1768935717530,6.61286658,127.13,127.1,7.86776503]
[1768935717727,6.67286657,127.14,127.11,3.05360915]
[1768935717927,6.67286657,127.15,127.11,3.05360915]
[1768935718113,6.67286657,127.16,127.12,3.05360915]
[1768935718313,9.48731121,127.19,127.14,9.72647572]
[1768935718539,2.81444464,127.18,127.14,9.72647572]
[1768935719038,9.48731121,127.18,127.14,9.72647572]
[1768935719428,2.81444464,127.17,127.14,3.05360915]
[1768935720339,2.81444464,127.14,127.1,9.72647572]
[1768935720541,9.42731113,127.14,127.1,10.92106715]
[1768935721642,6.67286657,127.15,127.11,10.92074701]
[1768935722221,6.67286657,127.14,127.09,17.59465702]
[1768935722421,2.81444464,127.12,127.09,3.05360915]
[1768935722733,9.48731121,127.12,127.08,11.02238404]
[1768935723029,9.48731121,127.11,127.08,0.1]
[1768935723235,2.75444461,127.11,127.08,7.96896225]
[1768935723947,9.42731118,127.11,127.08,0.1]
[1768935725554,9.48731121,127.1,127.08,0.1]
[1768935725936,17.22,127.13,127.08,0.1]
[1768935725937,9.48731121,127.11,127.08,0.1]
[1768935726334,2.81444464,127.12,127.08,9.82647572]
[1768935727148,9.48731121,127.12,127.08,9.82647572]
[1768935728134,6.67286657,127.13,127.09,3.05360915]
[1768935728332,26.72731121,127.14,127.1,3.05360915]
[1768935729551,2.81444464,127.12,127.09,7.86800805]
[1768935729925,6.67286657,127.13,127.09,10.9216172]
[1768935730129,2.81444464,127.13,127.09,17.59448377]
[1768935730349,2.81444464,127.13,127.08,0.1]
[1768935730350,2.81444464,127.15,127.11,9.72647572]
[1768935731541,2.81444464,127.15,127.11,17.59333182]
[1768935731736,9.48731121,127.15,127.11,17.59333182]
[1768935733137,26.72731121,127.16,127.12,3.05360915]
[1768935733334,2.81444464,127.16,127.13,9.72647572]
[1768935733534,9.48731121,127.18,127.14,6.67286657]
[1768935733955,2.81444464,127.17,127.14,6.67286657]
[1768935734341,2.81444464,127.17,127.13,17.59186598]
[1768935734655,9.48731121,127.16,127.11,17.5933511]
[1768935735248,9.48731121,127.16,127.12,5.8]
[1768935735552,3.03885334,127.15,127.12,5.8]
[1768935735744,9.71171991,127.15,127.12,5.8]
[1768935735952,3.03885334,127.14,127.12,5.8]
[1768935736347,3.03885334,127.14,127.1,17.3026373]
[1768935736547,3.03885334,127.14,127.11,7.86704997]
[1768935736749,3.03885334,127.15,127.11,17.30210295]
[1768935737048,9.71171991,127.17,127.13,9.43505298]
[1768935737241,3.03885334,127.17,127.13,9.43505298]
[1768935737447,9.71171991,127.17,127.13,9.43505298]
[1768935738263,3.03885334,127.16,127.12,7.86649346]
[1768935738558,9.71171991,127.16,127.12,10.62867987]
[1768935738937,3.03885334,127.16,127.12,17.30154644]
[1768935739136,3.03885334,127.16,127.13,6.67286657]
[1768935739658,3.03885334,127.16,127.12,10.62867987]
[1768935739659,3.03885334,127.16,127.12,17.30154644]
[1768935740663,3.03885334,127.16,127.13,9.43505298]
[1768935740962,3.03885334,127.16,127.13,2.76218641]
[1768935741542,9.71171991,127.14,127.09,29.24721889]
[1768935741738,6.67286657,127.19,127.09,7.86806215]
[1768935741739,3.03885334,127.12,127.09,7.86806215]
[1768935742047,7.86413802,127.16,127.09,9.43505298]
[1768935742048,26.95171991,127.14,127.09,9.43505298]
[1768935742250,20.27885334,127.14,127.1,6.67286657]
[1768935742450,20.27885334,127.14,127.1,9.43505298]
[1768935742664,20.27885334,127.14,127.1,17.30261398]
[1768935742842,20.27885334,127.14,127.1,13.3051861]
[1768935744371,5.71429203,127.16,127.11,5.4376251]
[1768935744540,7.86376732,127.17,127.13,5.4376251]
[1768935744541,3.03885334,127.17,127.13,5.4376251]
[1768935744968,3.03885334,127.19,127.15,2.76218641]
[1768935745140,3.03885334,127.19,127.15,5.4376251]
[1768935746637,3.03885334,127.19,127.15,13.30215998]
[1768935746840,9.72202236,127.21,127.16,9.44535543]
[1768935747073,9.72202236,127.21,127.17,9.44535543]
[1768935747074,3.03885334,127.21,127.17,9.44535543]
[1768935747241,7.37996912,127.21,127.17,2.76218641]
[1768935749868,24.61996912,127.21,127.17,2.76218641]
[1768935750853,3.03885334,127.2,127.17,2.76218641]
[1768935752964,3.03885334,127.22,127.17,17.30867932]
[1768935753181,3.03885334,127.22,127.19,9.44535543]
[1768935753589,3.03885334,127.22,127.19,2.76218641]
[1768935754784,6.68316902,127.23,127.16,17.30915003]
[1768935754785,3.03885334,127.2,127.16,17.30915003]
[1768935755100,3.03885334,127.2,127.16,17.30838492]
[1768935755778,17.24,127.21,127.17,9.44459032]
[1768935755967,9.72125725,127.22,127.19,2.76218641]
[1768935755968,20.27885334,127.22,127.19,2.76218641]
[1768935756711,9.72125725,127.25,127.2,9.44459032]
[1768935756991,9.72125725,127.25,127.17,0.14216157]
[1768935756992,9.72125725,127.24,127.19,6.68240391]
[1768935757201,9.72125725,127.22,127.17,14.5455863]
[1768935757997,9.72125725,127.22,127.18,7.86282803]
[1768935758608,3.03885334,127.22,127.18,14.54523194]
[1768935758979,3.03885334,127.22,127.17,10.62539534]
[1768935759309,3.03885334,127.2,127.16,17.30848918]
[1768935759675,3.03885334,127.2,127.17,10.6256613]
[1768935760099,6.68240391,127.21,127.17,10.6256613]
[1768935760480,9.72125725,127.21,127.17,10.6256613]
[1768935761481,3.03885334,127.21,127.17,17.30806521]
[1768935761791,9.72125725,127.21,127.17,10.6256613]
[1768935765685,9.6020239,127.2,127.16,2.86636449]
[1768935766202,9.6020239,127.2,127.17,5.7]
[1768935767004,5.59283509,127.2,127.17,5.7]
[1768935767710,2.91961999,127.2,127.17,5.7]
[1768935768025,22.81283509,127.22,127.18,2.86636449]
[1768935768679,2.6732151,127.21,127.18,2.86636449]
[1768935768910,5.59283509,127.21,127.18,2.86636449]
[1768935769079,5.59283509,127.22,127.18,2.86636449]
[1768935769276,20.13961999,127.22,127.18,2.86636449]
[1768935769890,22.81283509,127.22,127.18,2.86636449]
[1768935770085,2.6732151,127.21,127.17,7.86333847]
[1768935770287,2.91961999,127.19,127.16,10.7304663]
[1768935770507,2.6732151,127.2,127.17,2.86636449]
[1768935770708,2.91961999,127.2,127.17,2.86636449]
[1768935771007,2.91961999,127.2,127.17,8.56636449]
[1768935772809,5.59283509,127.22,127.18,2.86636449]
[1768935773108,22.81283509,127.22,127.18,2.86636449]
[1768935773313,2.91961999,127.21,127.18,2.86636449]
[1768935774017,5.59283509,127.21,127.18,2.86636449]
[1768935774386,5.59283509,127.21,127.18,10.72915741]
[1768935774689,5.59283509,127.21,127.18,2.86636449]
[1768935775916,5.59283509,127.21,127.18,10.72922292]
[1768935776286,5.59283509,127.23,127.19,2.86636449]
[1768935776505,5.59283509,127.25,127.2,5.53957959]
[1768935776688,5.59283509,127.25,127.21,2.86636449]
[1768935777193,25.27801654,127.26,127.21,2.86636449]
[1768935777194,0.2,127.26,127.21,2.86636449]
[1768935777397,0.2,127.26,127.23,2.86636449]
[1768935777810,2.8732151,127.26,127.23,2.86636449]
[1768935778207,0.2,127.26,127.23,2.86636449]
[1768935778788,2.8732151,127.26,127.23,2.86636449]
[1768935779212,5.79283509,127.26,127.23,2.86636449]
[1768935781607,0.2,127.26,127.24,2.86636449]
[1768935781812,0.2,127.26,127.25,2.86636449]
[1768935783099,0.2,127.26,127.24,2.86636449]
[1768935784116,0.2,127.26,127.25,2.86636449]
[1768935784891,17.22,127.31,127.26,2.86636449]
[1768935784892,2.6732151,127.31,127.26,2.86636449]
[1768935785094,1e-08,127.32,127.25,2.6732151]
[1768935785095,2.91962,127.32,127.28,2.6732151]
[1768935785625,2.91962,127.32,127.29,2.6732151]
[1768935785626,1e-08,127.32,127.29,2.6732151]
[1768935785990,1e-08,127.32,127.29,10.52883437]
[1768935786297,1e-08,127.32,127.29,7.85561927]
[1768935786501,1e-08,127.32,127.28,10.52984547]
[1768935786811,1e-08,127.32,127.29,10.52911264]
[1768935787010,1e-08,127.32,127.3,5.53957959]
[1768935788394,1e-08,127.32,127.3,2.86636449]
[1768935790021,1e-08,127.32,127.3,13.39493922]
[1768935790210,1e-08,127.32,127.3,5.53957959]
[1768935790396,1e-08,127.32,127.3,2.86636449]
[1768935790806,1e-08,127.32,127.3,10.7216916]
[1768935791105,1e-08,127.32,127.3,2.86636449]
[1768935791304,1e-08,127.32,127.31,2.86636449]
[1768935792618,1e-08,127.32,127.31,10.52805761]
[1768935792801,2.91961999,127.33,127.29,10.52880932]
[1768935793198,2.91961999,127.33,127.3,2.86636449]
[1768935793821,5.59283509,127.31,127.27,10.72322164]
[1768935794997,5.59283509,127.31,127.28,2.94385378]
[1768935795208,5.69078396,127.33,127.29,2.94385378]
[1768935795919,5.69078397,127.34,127.29,2.94385378]
[1768935796099,5.69078397,127.34,127.3,2.94385378]
[1768935797900,5.69078396,127.33,127.29,2.94385378]
[1768935798818,3.01756886,127.31,127.27,13.47412775]
[1768935799020,5.69078396,127.31,127.27,10.80091265]
[1768935799395,5.69078396,127.29,127.25,7.85841099]
[1768935799622,5.63078397,127.29,127.25,10.80226477]
[1768935799827,5.57078398,127.29,127.26,2.94385378]
[1768935801435,2.6732151,127.29,127.26,2.94385378]
[1768935801799,2.6732151,127.28,127.25,2.94385378]
[1768935802004,2.6732151,127.27,127.25,2.94385378]
[1768935802219,2.6732151,127.27,127.24,10.80279184]
[1768935802506,5.69078396,127.28,127.24,7.85893806]
[1768935802708,5.69078396,127.28,127.25,2.94385378]
[1768935803916,5.69078396,127.29,127.25,10.80237483]
[1768935804728,2.6732151,127.3,127.26,2.94385378]
[1768935805027,5.69078396,127.3,127.26,2.94385378]
[1768935805828,0.6218,127.29,127.26,2.94385378]
[1768935806230,0.56180001,127.29,127.26,10.80175802]
[1768935806631,0.56180001,127.29,127.27,2.94385378]
[1768935807320,0.56180001,127.29,127.26,10.80175802]
[1768935808128,2.6732151,127.3,127.27,2.94385378]
[1768935808427,22.91078396,127.33,127.29,2.94385378]
[1768935808610,22.91078396,127.33,127.27,27.50001894]
[1768935808611,2.67321511,127.34,127.3,5.61706888]
[1768935809135,1e-08,127.34,127.33,2.94385378]
[1768935811833,1e-08,127.34,127.3,22.31066171]
[1768935811834,1e-08,127.34,127.31,13.47167121]
[1768935812218,1e-08,127.34,127.32,2.94385378]
[1768935812419,1e-08,127.34,127.31,5.61706888]
[1768935812634,5.69078397,127.34,127.3,10.79901483]
[1768935813133,5.69078397,127.34,127.31,7.85477541]
[1768935813521,2.67321511,127.34,127.31,10.79862919]
[1768935813725,1e-08,127.34,127.32,7.85416649]
[1768935814037,1e-08,127.34,127.31,10.79845614]
[1768935814435,1e-08,127.34,127.33,2.94385378]
[1768935816015,0.2,127.36,127.33,2.6732151]
[1768935816525,2.8732151,127.36,127.32,13.47126115]
[1768935816727,0.2,127.36,127.33,5.61706888]
[1768935816912,0.2,127.36,127.33,5.60976907]
[1768935818310,0.2,127.36,127.33,13.46323416]
[1768935819243,0.2,127.36,127.33,2.94385378]
[1768935820838,3.21756886,127.36,127.33,10.79734071]
[1768935821138,3.21756886,127.36,127.33,2.94385378]
[1768935822046,3.21756886,127.36,127.33,5.60976907]
[1768935822342,3.21756886,127.36,127.33,2.94385378]
[1768935822540,3.21756886,127.36,127.33,10.7973178]
[1768935823543,3.21756886,127.36,127.33,2.94385378]
[1768935824133,3.21756886,127.36,127.3,2.80807686]
[1768935824134,5.5984309,127.34,127.3,13.39558852]
[1768935824542,5.5984309,127.34,127.3,2.874718]
[1768935825140,2.66591529,127.34,127.3,2.874718]
[1768935825445,2.96103436,127.32,127.28,10.8211349]
[1768935825624,5.62694965,127.32,127.28,13.48705019]
[1768935826346,5.62694965,127.32,127.27,19.78442068]
[1768935826347,2.96103436,127.31,127.27,10.52300713]
[1768935826649,2.96103436,127.29,127.26,10.8221431]
[1768935827034,5.62694965,127.3,127.27,7.8573001]
[1768935827353,5.62694965,127.32,127.28,2.96469509]
[1768935827550,2.96103436,127.3,127.27,7.8573001]
[1768935827847,2.96103436,127.3,127.26,13.48836424]
[1768935828341,2.96103436,127.3,127.27,7.85715921]
[1768935829949,2.96103436,127.3,127.26,13.48843272]
[1768935830955,5.62694965,127.29,127.25,10.82297296]
[1768935831131,2.66591529,127.27,127.24,10.82366207]
[1768935832144,2.6059153,127.27,127.24,10.82366207]
[1768935832454,2.54591531,127.27,127.24,10.82366207]
[1768935833357,5.62694965,127.26,127.23,7.8596993]
[1768935834136,2.66591529,127.26,127.23,10.82439439]
[1768935834529,5.62694965,127.26,127.23,10.82439439]
[1768935834730,5.56694966,127.26,127.23,10.82439439]
[1768935835547,2.6059153,127.26,127.23,10.82439439]
[1768935837056,2.66591529,127.28,127.24,2.96469509]
[1768935837261,5.62694965,127.28,127.24,2.96469509]
[1768935837840,2.66591529,127.27,127.24,2.96469509]
[1768935838541,5.62694965,127.28,127.25,2.96469509]
[1768935840655,5.62694965,127.28,127.24,2.96469509]
[1768935840845,5.62694965,127.28,127.24,10.82381203]
[1768935841156,5.62694965,127.27,127.24,10.82381203]
[1768935841359,2.66591529,127.27,127.24,10.82381203]
[1768935841863,5.62694965,127.28,127.25,2.96469509]
[1768935843665,2.66591529,127.27,127.24,2.96469509]
[1768935843834,2.66591529,127.27,127.24,10.82384237]
[1768935844461,2.66591529,127.27,127.24,2.96469509]
[1768935844862,2.66591529,127.27,127.24,10.82381877]
[1768935845742,5.62694965,127.25,127.22,10.96687928]
[1768935846047,2.66591529,127.24,127.22,2.96469509]
[1768935846563,2.6659153,127.24,127.21,2.96469509]
[1768935846745,2.66591529,127.25,127.23,2.96469509]
[1768935847151,2.66591529,127.25,127.22,2.96469509]
[1768935848476,2.6059153,127.25,127.22,2.96469509]
[1768935849155,2.54591531,127.25,127.22,2.96469509]
[1768935850666,2.66591529,127.27,127.23,2.96469509]
[1768935851065,2.66591529,127.27,127.23,10.82403292]
[1768935851948,2.66591529,127.27,127.24,2.96469509]
[1768935852267,2.66591529,127.29,127.25,2.96469509]
[1768935852771,5.1863969,127.29,127.25,2.96469509]
[1768935853082,5.18522517,127.27,127.23,10.82403292]
[1768935853246,5.18522517,127.27,127.24,2.96469509]
[1768935853569,2.66591529,127.27,127.24,2.96469509]
[1768935853744,2.66591529,127.27,127.24,10.82382065]
[1768935854860,5.18292194,127.27,127.24,2.96469509]
[1768935855566,2.66591529,127.27,127.24,2.96469509]
[1768935856165,2.66591529,127.27,127.24,10.82373466]
[1768935857665,2.66591529,127.26,127.24,10.82373466]
[1768935858549,2.66591529,127.27,127.24,10.82373466]
[1768935859370,2.66591529,127.26,127.24,2.95598602]
[1768935859757,5.1773914,127.27,127.24,2.95598602]
[1768935859958,2.66591529,127.26,127.24,2.95598602]
[1768935860680,2.66591529,127.27,127.24,2.95598602]
[1768935860970,2.66591529,127.26,127.23,10.81552406]
[1768935865075,2.66591529,127.26,127.24,2.95598602]
[1768935865274,5.17632311,127.27,127.24,2.95598602]
[1768935865459,2.66591529,127.27,127.24,10.81514651]
[1768935866566,2.66591529,127.3,127.26,2.95598602]
[1768935866760,2.66591529,127.3,127.27,2.95598602]
[1768935866962,5.16918089,127.3,127.27,2.95598602]
[1768935868075,5.16820691,127.29,127.26,2.95598602]
[1768935869062,5.16820691,127.29,127.26,10.81379824]
[1768935869275,2.66591529,127.28,127.26,2.95598602]
[1768935869526,2.66591529,127.28,127.25,10.81410975]
[1768935870196,2.66591529,127.28,127.26,2.95598602]
[1768935870371,2.66591529,127.29,127.26,2.95598602]
[1768935870565,2.66591529,127.3,127.26,5.62190131]
[1768935870765,5.16629238,127.32,127.28,2.95598602]
[1768935870970,2.66591529,127.32,127.28,2.95598602]
[1768935871192,5.16535157,127.32,127.28,2.95598602]
[1768935871690,5.16535157,127.32,127.28,5.62190131]
[1768935871875,5.16535157,127.32,127.28,2.95598602]
[1768935872276,5.16535157,127.32,127.28,10.81260135]
[1768935872688,5.16535157,127.32,127.28,13.47851664]
[1768935874676,5.16535157,127.32,127.29,2.95598602]
[1768935875573,5.16169518,127.35,127.31,2.95598602]
[1768935875774,22.38169518,127.35,127.31,2.95598602]
[1768935875980,5.16080718,127.33,127.29,2.95598602]
[1768935876178,5.16080718,127.32,127.28,2.95598602]
[1768935876389,5.16080718,127.32,127.28,5.62190131]
[1768935876580,5.16080718,127.32,127.28,13.47831209]
[1768935877088,5.16313666,127.32,127.28,13.48064157]
[1768935878373,2.49489189,127.32,127.28,13.48064157]
[1768935878573,5.16139114,127.33,127.29,2.95598602]
[1768935879193,2.66824477,127.33,127.3,2.95598602]
[1768935879774,22.38053338,127.35,127.31,5.62423079]
[1768935880195,5.16053338,127.35,127.31,5.62423079]
[1768935880899,2.49060255,127.34,127.31,5.62423079]
[1768935881085,2.49060255,127.34,127.31,2.66824477]
[1768935881293,2.49060255,127.34,127.3,5.62423079]
[1768935881497,2.49060255,127.34,127.3,13.47968029]
[1768935883500,2.49060255,127.34,127.3,5.62423079]
[1768935883900,2.49060255,127.34,127.3,13.47956933]
[1768935885805,2.49060255,127.34,127.3,5.62423079]
[1768935886911,22.37324365,127.35,127.32,2.88877822]
[1768935887408,22.37324365,127.35,127.31,2.66824477]
[1768935887587,22.37324365,127.35,127.31,5.55702299]
[1768935887904,22.57247948,127.36,127.32,2.88877822]
[1768935888115,5.35247948,127.36,127.32,2.66824477]
[1768935888282,22.57247948,127.36,127.33,2.88877822]
[1768935888802,5.35247948,127.36,127.32,5.55702299]
[1768935888996,5.35247948,127.36,127.32,2.88877822]
[1768935889398,5.35247948,127.36,127.33,2.88877822]
[1768935891097,5.35247948,127.36,127.32,2.88877822]
[1768935891301,2.66824477,127.35,127.32,2.88877822]
[1768935892410,2.68126479,127.36,127.32,2.88877822]
[1768935892713,5.34950956,127.36,127.32,2.88877822]
[1768935893706,2.66824477,127.35,127.32,2.88877822]
[1768935893910,5.14807529,127.34,127.3,5.55702299]
[1768935894094,2.66824477,127.33,127.3,2.88877822]
[1768935894287,5.14737048,127.32,127.29,2.88877822]
[1768935894707,5.14737048,127.31,127.28,2.88877822]
[1768935894906,5.14667377,127.3,127.26,2.88877822]
[1768935895098,2.66824477,127.29,127.26,2.88877822]
[1768935895296,2.66824477,127.28,127.25,2.88877822]
[1768935895818,5.14667377,127.28,127.24,2.88877822]
[1768935895988,2.66824477,127.27,127.24,2.88877822]
[1768935897219,2.66824477,127.27,127.24,10.74772774]
[1768935897419,22.36667377,127.28,127.25,2.88877822]
[1768935897607,19.88824477,127.3,127.26,2.88877822]
[1768935897919,2.66824477,127.29,127.26,2.88877822]
[1768935899091,2.66824477,127.3,127.27,2.88877822]
[1768935900511,2.66824477,127.31,127.28,2.88877822]
[1768935901020,2.4744136,127.33,127.28,2.88877822]
[1768935901195,2.66824477,127.33,127.29,2.88877822]
[1768935901521,2.66824477,127.32,127.29,2.88877822]
[1768935902227,2.66824477,127.33,127.29,2.88877822]
[1768935902600,5.14201578,127.33,127.29,2.88877822]
[1768935903224,2.66824477,127.32,127.29,2.88877822]
[1768935903429,2.66824477,127.31,127.29,2.88877822]
[1768935904410,2.66824477,127.32,127.29,2.88877822]
[1768935905435,2.66824477,127.31,127.29,2.88877822]
[1768935905730,2.66824477,127.31,127.27,2.88877822]
[1768935905731,2.66824477,127.3,127.27,2.88877822]
[1768935905911,2.66824477,127.29,127.27,2.88877822]
[1768935906948,19.69188719,127.31,127.24,2.88877822]
[1768935906949,5.13891187,127.28,127.24,2.88877822]
[1768935907231,2.66824477,127.27,127.24,2.88877822]
[1768935907414,2.66824477,127.27,127.24,10.74787899]
[1768935907733,2.4706671,127.31,127.27,2.88877822]
[1768935908047,2.66824477,127.3,127.27,2.88877822]
[1768935908334,2.66824477,127.29,127.27,2.88877822]
[1768935908710,5.13831231,127.28,127.24,2.88877822]
[1768935909015,2.66824477,127.26,127.24,2.88877822]
[1768935909322,2.66824477,127.27,127.25,2.88877822]
[1768935910617,2.66824477,127.27,127.22,19.65023056]
[1768935910618,2.66824477,127.27,127.24,2.88877822]
[1768935910941,2.66824477,127.25,127.22,2.88877822]
[1768935911942,2.66824477,127.25,127.23,2.88877822]
[1768935912439,2.66824477,127.26,127.23,2.88877822]
[1768935913138,2.66824477,127.28,127.24,2.88877822]
[1768935913310,2.66824477,127.28,127.25,2.88877822]
[1768935913927,5.13541626,127.29,127.25,2.88877822]
[1768935914133,19.68661208,127.31,127.27,2.88877822]
[1768935914327,2.66824477,127.3,127.27,2.88877822]
[1768935914728,5.13485685,127.33,127.29,2.88877822]
[1768935915040,22.35485685,127.33,127.29,2.88877822]